[Event "Titled Tuesday Blitz March 15 Late 2022"]
[White "Gledura, Benjamin"]
[Black "Sanal, Vahap"]
[WhiteFideId "712779"]
[BlackFideId "6300545"]
[WhiteElo "2326"]
[BlackElo "2603"]
[Result "0-1"]
[Round "03"]
[TimeControl "180+1"]
[Date "2022.03.15"]
[WhiteClock "0:00:02"]
[BlackClock "0:00:29"]

1. Nf3 {[%clk 0:02:51]}  d5 {[%clk 0:02:59]} 2. g3 {[%clk 0:02:51]}  c6 {[%clk 0:02:59]} 3. Bg2 {[%clk 0:02:51]}  Nf6 {[%clk 0:02:59]} 4. O-O {[%clk 0:02:51]}  Bg4 {[%clk 0:02:59]} 5. h3 {[%clk 0:02:50]}  Bxf3 {[%clk 0:02:58]} 6. Bxf3 {[%clk 0:02:50]}  e6 {[%clk 0:02:58]} 7. d3 {[%clk 0:02:50]}  Nbd7 {[%clk 0:02:58]} 8. Bg2 {[%clk 0:02:49]}  Bd6 {[%clk 0:02:59]} 9. e4 {[%clk 0:02:48]}  Qb6 {[%clk 0:02:56]} 10. Kh1 {[%clk 0:02:47]}  h5 {[%clk 0:02:55]} 11. Qe2 {[%clk 0:02:46]}  h4 {[%clk 0:02:52]} 12. g4 {[%clk 0:02:46]}  dxe4 {[%clk 0:02:51]} 13. dxe4 {[%clk 0:02:46]}  e5 {[%clk 0:02:51]} 14. Nd2 {[%clk 0:02:46]}  Qc7 {[%clk 0:02:50]} 15. Nc4 {[%clk 0:02:45]}  Be7 {[%clk 0:02:51]} 16. f4 {[%clk 0:02:45]}  O-O-O {[%clk 0:02:43]} 17. a4 {[%clk 0:02:14]}  Rhe8 {[%clk 0:02:32]} 18. a5 {[%clk 0:02:13]}  a6 {[%clk 0:02:28]} 19. g5 {[%clk 0:01:58]}  Ng8 {[%clk 0:02:23]} 20. Be3 {[%clk 0:01:32]}  Bc5 {[%clk 0:02:10]} 21. Bd2 {[%clk 0:01:32]}  Ne7 {[%clk 0:02:04]} 22. b4 {[%clk 0:01:31]}  Bd4 {[%clk 0:02:00]} 23. c3 {[%clk 0:01:30]}  Ba7 {[%clk 0:02:01]} 24. fxe5 {[%clk 0:01:22]}  Nxe5 {[%clk 0:01:54]} 25. Nxe5 {[%clk 0:01:20]}  Qxe5 {[%clk 0:01:55]} 26. Qg4+ {[%clk 0:01:19]}  Qe6 {[%clk 0:01:52]} 27. Qxe6+ {[%clk 0:00:59]}  fxe6 {[%clk 0:01:52]} 28. Be1 {[%clk 0:00:59]}  Ng6 {[%clk 0:01:49]} 29. e5 {[%clk 0:01:00]}  Rf8 {[%clk 0:01:41]} 30. Rxf8 {[%clk 0:00:53]}  Rxf8 {[%clk 0:01:42]} 31. Ra2 {[%clk 0:00:47]}  Rd8 {[%clk 0:01:35]} 32. Rd2 {[%clk 0:00:44]}  Rxd2 {[%clk 0:01:34]} 33. Bxd2 {[%clk 0:00:45]}  Bf2 {[%clk 0:01:34]} 34. c4 {[%clk 0:00:41]}  Bg3 {[%clk 0:01:30]} 35. Bf1 {[%clk 0:00:24]}  Bxe5 {[%clk 0:01:27]} 36. Kg2 {[%clk 0:00:20]}  Bf4 {[%clk 0:01:24]} 37. Bxf4 {[%clk 0:00:20]}  Nxf4+ {[%clk 0:01:24]} 38. Kf3 {[%clk 0:00:21]}  e5 {[%clk 0:01:16]} 39. Ke4 {[%clk 0:00:21]}  Ne6 {[%clk 0:01:12]} 40. g6 {[%clk 0:00:13]}  Kd7 {[%clk 0:01:02]} 41. c5 {[%clk 0:00:12]}  Nf4 {[%clk 0:00:58]} 42. Kxe5 {[%clk 0:00:12]}  Nxg6+ {[%clk 0:00:54]} 43. Kf5 {[%clk 0:00:11]}  Ne7+ {[%clk 0:00:55]} 44. Kg5 {[%clk 0:00:12]}  Nd5 {[%clk 0:00:55]} 45. Kxh4 {[%clk 0:00:11]}  Nxb4 {[%clk 0:00:55]} 46. Kg5 {[%clk 0:00:12]}  Ke7 {[%clk 0:00:55]} 47. Kg6 {[%clk 0:00:12]}  Kf8 {[%clk 0:00:55]} 48. Kf5 {[%clk 0:00:13]}  Nd5 {[%clk 0:00:49]} 49. Ke6 {[%clk 0:00:13]}  Ke8 {[%clk 0:00:49]} 50. Kd6 {[%clk 0:00:12]}  Kd8 {[%clk 0:00:47]} 51. Ke6 {[%clk 0:00:11]}  Ke8 {[%clk 0:00:45]} 52. Kd6 {[%clk 0:00:12]}  Kd8 {[%clk 0:00:35]} 53. Ke6 {[%clk 0:00:12]}  Nc3 {[%clk 0:00:28]} 54. Kf7 {[%clk 0:00:11]}  g5 {[%clk 0:00:28]} 55. Kg6 {[%clk 0:00:09]}  Ne4 {[%clk 0:00:28]} 56. Bg2 {[%clk 0:00:08]}  Nxc5 {[%clk 0:00:28]} 57. Kxg5 {[%clk 0:00:08]}  Ke7 {[%clk 0:00:28]} 58. Kg6 {[%clk 0:00:09]}  Kf8 {[%clk 0:00:28]} 59. Kh7 {[%clk 0:00:07]}  Nb3 {[%clk 0:00:28]} 60. h4 {[%clk 0:00:07]}  Nxa5 {[%clk 0:00:28]} 61. h5 {[%clk 0:00:08]}  Nc4 {[%clk 0:00:29]} 62. h6 {[%clk 0:00:07]}  Ne5 {[%clk 0:00:29]} 63. Bh3 {[%clk 0:00:03]}  a5 {[%clk 0:00:28]} 64. Be6 {[%clk 0:00:02]}  c5 {[%clk 0:00:29]} 0-1


[Site "https://www.chess.com"]

[Event "Titled Tuesday Blitz March 15 Late 2022"]
[White "Golubev, Mikhail"]
[Black "Zhigalko, Sergei"]
[WhiteFideId "14100983"]
[BlackFideId "13502956"]
[WhiteElo "2374"]
[BlackElo "2662"]
[Result "0-1"]
[Round "03"]
[TimeControl "180+1"]
[Date "2022.03.15"]
[WhiteClock "0:00:01"]
[BlackClock "0:01:35"]

1. e4 {[%clk 0:02:52]}  c5 {[%clk 0:02:59]} 2. Nf3 {[%clk 0:02:51]}  Nc6 {[%clk 0:02:59]} 3. Nc3 {[%clk 0:02:50]}  Nf6 {[%clk 0:02:59]} 4. d4 {[%clk 0:02:46]}  cxd4 {[%clk 0:02:59]} 5. Nxd4 {[%clk 0:02:47]}  e5 {[%clk 0:03:00]} 6. Ndb5 {[%clk 0:02:47]}  d6 {[%clk 0:03:00]} 7. Bg5 {[%clk 0:02:47]}  a6 {[%clk 0:03:00]} 8. Na3 {[%clk 0:02:46]}  b5 {[%clk 0:03:00]} 9. Bxf6 {[%clk 0:02:43]}  gxf6 {[%clk 0:03:01]} 10. Nd5 {[%clk 0:02:43]}  Bg7 {[%clk 0:03:01]} 11. c3 {[%clk 0:02:43]}  f5 {[%clk 0:03:01]} 12. exf5 {[%clk 0:02:43]}  Bxf5 {[%clk 0:03:02]} 13. Nc2 {[%clk 0:02:43]}  Be6 {[%clk 0:03:02]} 14. Nce3 {[%clk 0:02:43]}  Ne7 {[%clk 0:03:02]} 15. a4 {[%clk 0:01:46]}  Nxd5 {[%clk 0:02:51]} 16. Nxd5 {[%clk 0:01:47]}  O-O {[%clk 0:02:49]} 17. Be2 {[%clk 0:01:31]}  bxa4 {[%clk 0:02:47]} 18. O-O {[%clk 0:01:23]}  Rb8 {[%clk 0:02:30]} 19. Rxa4 {[%clk 0:01:15]}  Rxb2 {[%clk 0:02:16]} 20. Bxa6 {[%clk 0:00:58]}  Qg5 {[%clk 0:01:59]} 21. h4 {[%clk 0:00:38]}  Qd8 {[%clk 0:01:44]} 22. h5 {[%clk 0:00:07]}  Qg5 {[%clk 0:01:42]} 23. Qf3 {[%clk 0:00:04]}  e4 {[%clk 0:01:38]} 24. Rxe4 {[%clk 0:00:01]}  Bxd5 {[%clk 0:01:35]} 0-1


[Site "https://www.chess.com"]

[Event "Titled Tuesday Blitz March 15 Late 2022"]
[White "Golubka, Petro"]
[Black "Kubicka, Anna"]
[WhiteFideId "14114224"]
[BlackFideId "1152254"]
[WhiteElo "2346"]
[BlackElo "2000"]
[Result "1-0"]
[Round "03"]
[TimeControl "180+1"]
[Date "2022.03.16"]
[WhiteClock "0:01:39"]
[BlackClock "0:01:13"]

1. e4 {[%clk 0:02:44]}  c5 {[%clk 0:02:59]} 2. b3 {[%clk 0:02:24]}  Nc6 {[%clk 0:02:58]} 3. Bb2 {[%clk 0:02:24]}  e5 {[%clk 0:02:58]} 4. Bc4 {[%clk 0:02:23]}  d6 {[%clk 0:02:56]} 5. Nc3 {[%clk 0:02:21]}  Be7 {[%clk 0:02:54]} 6. Nf3 {[%clk 0:02:20]}  Nf6 {[%clk 0:02:54]} 7. h3 {[%clk 0:02:20]}  O-O {[%clk 0:02:54]} 8. a4 {[%clk 0:02:21]}  Nd4 {[%clk 0:02:54]} 9. O-O {[%clk 0:02:16]}  a6 {[%clk 0:02:51]} 10. Re1 {[%clk 0:02:14]}  Rb8 {[%clk 0:02:48]} 11. Bf1 {[%clk 0:02:09]}  Bd7 {[%clk 0:02:40]} 12. a5 {[%clk 0:02:03]}  Nc6 {[%clk 0:02:30]} 13. Nd5 {[%clk 0:02:02]}  Re8 {[%clk 0:02:14]} 14. Nxe7+ {[%clk 0:01:58]}  Rxe7 {[%clk 0:02:10]} 15. Bc3 {[%clk 0:01:59]}  h6 {[%clk 0:01:51]} 16. Ra3 {[%clk 0:01:55]}  Nh7 {[%clk 0:01:50]} 17. Bc4 {[%clk 0:01:52]}  Be6 {[%clk 0:01:47]} 18. d3 {[%clk 0:01:50]}  Bxc4 {[%clk 0:01:44]} 19. dxc4 {[%clk 0:01:51]}  Re6 {[%clk 0:01:43]} 20. Re3 {[%clk 0:01:49]}  Rg6 {[%clk 0:01:38]} 21. Rd3 {[%clk 0:01:47]}  Qe7 {[%clk 0:01:33]} 22. Qe2 {[%clk 0:01:43]}  Rf8 {[%clk 0:01:33]} 23. Ra1 {[%clk 0:01:42]}  f5 {[%clk 0:01:31]} 24. Rad1 {[%clk 0:01:40]}  fxe4 {[%clk 0:01:22]} 25. Qxe4 {[%clk 0:01:41]}  Rf4 {[%clk 0:01:22]} 26. Qxg6 {[%clk 0:01:40]}  e4 {[%clk 0:01:13]} 27. Re3 {[%clk 0:01:39]} 1-0


[Site "https://www.chess.com"]

[Event "Titled Tuesday Blitz March 15 Late 2022"]
[White "Hambleton, Aman"]
[Black "Seul, Georg"]
[WhiteFideId "2606577"]
[BlackFideId "4601653"]
[WhiteElo "2552"]
[BlackElo "2271"]
[Result "1-0"]
[Round "03"]
[TimeControl "180+1"]
[Date "2022.03.16"]
[WhiteClock "0:00:03"]
[BlackClock "0:00:04"]

1. d4 {[%clk 0:02:52]}  Nf6 {[%clk 0:02:59]} 2. Bf4 {[%clk 0:02:45]}  c5 {[%clk 0:02:49]} 3. e3 {[%clk 0:02:37]}  Nd5 {[%clk 0:02:48]} 4. Bg3 {[%clk 0:02:32]}  Qb6 {[%clk 0:02:45]} 5. b3 {[%clk 0:02:10]}  Qb4+ {[%clk 0:02:32]} 6. Qd2 {[%clk 0:01:46]}  Qxd2+ {[%clk 0:02:31]} 7. Kxd2 {[%clk 0:01:46]}  cxd4 {[%clk 0:02:30]} 8. exd4 {[%clk 0:01:47]}  Nc6 {[%clk 0:02:28]} 9. Nf3 {[%clk 0:01:41]}  g6 {[%clk 0:02:13]} 10. c4 {[%clk 0:01:31]}  Bh6+ {[%clk 0:02:09]} 11. Kc2 {[%clk 0:01:25]}  Nf4 {[%clk 0:01:58]} 12. Nc3 {[%clk 0:00:18]}  d6 {[%clk 0:01:53]} 13. Rd1 {[%clk 0:00:12]}  Bf5+ {[%clk 0:01:51]} 14. Kb2 {[%clk 0:00:13]}  Nb4 {[%clk 0:01:48]} 15. Bxf4 {[%clk 0:00:06]}  Bxf4 {[%clk 0:01:47]} 16. a3 {[%clk 0:00:06]}  Na6 {[%clk 0:01:39]} 17. g3 {[%clk 0:00:06]}  Bh6 {[%clk 0:01:38]} 18. Bd3 {[%clk 0:00:02]}  Bxd3 {[%clk 0:01:36]} 19. Rxd3 {[%clk 0:00:03]}  Nc7 {[%clk 0:01:36]} 20. Re1 {[%clk 0:00:03]}  Kd7 {[%clk 0:01:32]} 21. b4 {[%clk 0:00:03]}  Bg7 {[%clk 0:01:26]} 22. Kb3 {[%clk 0:00:03]}  h6 {[%clk 0:01:25]} 23. Nb5 {[%clk 0:00:01]}  Nxb5 {[%clk 0:01:24]} 24. cxb5 {[%clk 0:00:02]}  e6 {[%clk 0:01:23]} 25. Rc3 {[%clk 0:00:02]}  Rac8 {[%clk 0:01:22]} 26. Rec1 {[%clk 0:00:01]}  Rxc3+ {[%clk 0:01:22]} 27. Rxc3 {[%clk 0:00:02]}  Rc8 {[%clk 0:01:21]} 28. Rxc8 {[%clk 0:00:02]}  Kxc8 {[%clk 0:01:21]} 29. a4 {[%clk 0:00:03]}  Kd7 {[%clk 0:01:21]} 30. Kc4 {[%clk 0:00:03]}  d5+ {[%clk 0:01:16]} 31. Kc3 {[%clk 0:00:03]}  Kd6 {[%clk 0:01:15]} 32. Kd3 {[%clk 0:00:03]}  f6 {[%clk 0:01:09]} 33. Nh4 {[%clk 0:00:02]}  g5 {[%clk 0:01:08]} 34. Ng2 {[%clk 0:00:03]}  e5 {[%clk 0:01:08]} 35. g4 {[%clk 0:00:02]}  exd4 {[%clk 0:00:53]} 36. h3 {[%clk 0:00:03]}  f5 {[%clk 0:00:47]} 37. f3 {[%clk 0:00:02]}  Ke5 {[%clk 0:00:46]} 38. Ne1 {[%clk 0:00:01]}  Kf4 {[%clk 0:00:45]} 39. Ke2 {[%clk 0:00:01]}  Kg3 {[%clk 0:00:38]} 40. gxf5 {[%clk 0:00:02]}  Kxh3 {[%clk 0:00:38]} 41. Kf2 {[%clk 0:00:01]}  g4 {[%clk 0:00:33]} 42. fxg4 {[%clk 0:00:01]}  Kxg4 {[%clk 0:00:33]} 43. Nd3 {[%clk 0:00:02]}  Kxf5 {[%clk 0:00:32]} 44. Nc5 {[%clk 0:00:02]}  b6 {[%clk 0:00:29]} 45. Nd7 {[%clk 0:00:02]}  h5 {[%clk 0:00:25]} 46. a5 {[%clk 0:00:02]}  h4 {[%clk 0:00:20]} 47. Nxb6 {[%clk 0:00:02]}  h3 {[%clk 0:00:17]} 48. Nxd5 {[%clk 0:00:02]}  Ke4 {[%clk 0:00:14]} 49. b6 {[%clk 0:00:02]}  h2 {[%clk 0:00:09]} 50. Kg2 {[%clk 0:00:03]}  d3 {[%clk 0:00:09]} 51. bxa7 {[%clk 0:00:03]}  d2 {[%clk 0:00:06]} 52. Nc3+ {[%clk 0:00:02]}  Bxc3 {[%clk 0:00:04]} 53. a8=Q+ {[%clk 0:00:03]}  Ke3 {[%clk 0:00:04]} 54. Qf3+ {[%clk 0:00:03]}  Kd4 {[%clk 0:00:04]} 55. Kxh2 {[%clk 0:00:03]} 1-0


[Site "https://www.chess.com"]

[Event "Titled Tuesday Blitz March 15 Late 2022"]
[White "Hess, Max"]
[Black "Alfaro, William"]
[WhiteFideId "24656666"]
[BlackFideId "6100457"]
[WhiteElo "2276"]
[BlackElo "2096"]
[Result "0-1"]
[Round "03"]
[TimeControl "180+1"]
[Date "2022.03.16"]
[WhiteClock "0:00:02"]
[BlackClock "0:00:23"]

1. d4 {[%clk 0:02:37]}  Nf6 {[%clk 0:02:58]} 2. Nf3 {[%clk 0:02:37]}  g6 {[%clk 0:02:57]} 3. g3 {[%clk 0:02:37]}  Bg7 {[%clk 0:02:56]} 4. Bg2 {[%clk 0:02:38]}  O-O {[%clk 0:02:57]} 5. O-O {[%clk 0:02:39]}  d6 {[%clk 0:02:57]} 6. b3 {[%clk 0:02:39]}  c5 {[%clk 0:02:56]} 7. Bb2 {[%clk 0:02:39]}  Nc6 {[%clk 0:02:53]} 8. d5 {[%clk 0:02:40]}  Nb4 {[%clk 0:02:49]} 9. c4 {[%clk 0:02:40]}  Bd7 {[%clk 0:02:46]} 10. Nbd2 {[%clk 0:02:33]}  b5 {[%clk 0:02:45]} 11. e4 {[%clk 0:02:09]}  Nd3 {[%clk 0:02:40]} 12. Bxf6 {[%clk 0:01:57]}  Bxf6 {[%clk 0:02:41]} 13. Rb1 {[%clk 0:01:57]}  b4 {[%clk 0:02:28]} 14. Qe2 {[%clk 0:01:56]}  Ne5 {[%clk 0:02:26]} 15. Ne1 {[%clk 0:01:52]}  a5 {[%clk 0:02:24]} 16. f4 {[%clk 0:01:43]}  Ng4 {[%clk 0:02:18]} 17. e5 {[%clk 0:01:41]}  dxe5 {[%clk 0:02:16]} 18. h3 {[%clk 0:01:42]}  exf4 {[%clk 0:01:21]} 19. hxg4 {[%clk 0:01:39]}  fxg3 {[%clk 0:01:20]} 20. Nc2 {[%clk 0:01:24]}  a4 {[%clk 0:01:16]} 21. Ne4 {[%clk 0:01:21]}  Bg7 {[%clk 0:01:08]} 22. Qf3 {[%clk 0:00:33]}  axb3 {[%clk 0:00:57]} 23. axb3 {[%clk 0:00:34]}  Ra2 {[%clk 0:00:56]} 24. Rbc1 {[%clk 0:00:34]}  Qc7 {[%clk 0:00:52]} 25. g5 {[%clk 0:00:29]}  Bf5 {[%clk 0:00:50]} 26. Ne3 {[%clk 0:00:16]}  Bd4 {[%clk 0:00:48]} 27. Kh1 {[%clk 0:00:15]}  Bxe3 {[%clk 0:00:37]} 28. Qxe3 {[%clk 0:00:15]}  Qe5 {[%clk 0:00:38]} 29. Qxg3 {[%clk 0:00:14]}  Qxg3 {[%clk 0:00:24]} 30. Nxg3 {[%clk 0:00:13]}  Bc2 {[%clk 0:00:24]} 31. Rf3 {[%clk 0:00:12]}  Rfa8 {[%clk 0:00:24]} 32. Re3 {[%clk 0:00:12]}  Kf8 {[%clk 0:00:23]} 33. Rce1 {[%clk 0:00:11]}  Ra1 {[%clk 0:00:22]} 34. Kh2 {[%clk 0:00:11]}  Rxe1 {[%clk 0:00:21]} 35. Rxe1 {[%clk 0:00:11]}  Bxb3 {[%clk 0:00:22]} 36. Bf1 {[%clk 0:00:11]}  Ra2+ {[%clk 0:00:21]} 37. Kh3 {[%clk 0:00:11]}  Bc2 {[%clk 0:00:22]} 38. Kg4 {[%clk 0:00:09]}  b3 {[%clk 0:00:22]} 39. Ne2 {[%clk 0:00:07]}  b2 {[%clk 0:00:22]} 40. Nc3 {[%clk 0:00:07]}  Ra3 {[%clk 0:00:22]} 41. Nb1 {[%clk 0:00:02]}  Ra1 {[%clk 0:00:22]} 42. d6 {[%clk 0:00:01]}  exd6 {[%clk 0:00:22]} 43. Re2 {[%clk 0:00:01]}  Bxb1 {[%clk 0:00:20]} 44. Rxb2 {[%clk 0:00:01]}  Bf5+ {[%clk 0:00:21]} 45. Kh4 {[%clk 0:00:01]}  Rxf1 {[%clk 0:00:21]} 46. Rb8+ {[%clk 0:00:01]}  Ke7 {[%clk 0:00:22]} 47. Rb7+ {[%clk 0:00:02]}  Ke6 {[%clk 0:00:22]} 48. Rb8 {[%clk 0:00:02]}  Rf3 {[%clk 0:00:23]} 0-1


[Site "https://www.chess.com"]

[Event "Titled Tuesday Blitz March 15 Late 2022"]
[White "Hirneise, Jens"]
[Black "Arabidze, Meri"]
[WhiteFideId "24614734"]
[BlackFideId "13604040"]
[WhiteElo "2359"]
[BlackElo "2335"]
[Result "1-0"]
[Round "03"]
[TimeControl "180+1"]
[Date "2022.03.16"]
[WhiteClock "0:01:32"]
[BlackClock "0:00:01"]

1. d4 {[%clk 0:03:00]}  f5 {[%clk 0:02:59]} 2. Bg5 {[%clk 0:02:56]}  Nf6 {[%clk 0:02:57]} 3. Bxf6 {[%clk 0:02:56]}  exf6 {[%clk 0:02:58]} 4. g3 {[%clk 0:02:55]}  d5 {[%clk 0:02:58]} 5. Bg2 {[%clk 0:02:56]}  c6 {[%clk 0:02:58]} 6. h4 {[%clk 0:02:55]}  Bd6 {[%clk 0:02:57]} 7. Nh3 {[%clk 0:02:54]}  Be6 {[%clk 0:02:55]} 8. Nd2 {[%clk 0:02:53]}  g6 {[%clk 0:02:45]} 9. e3 {[%clk 0:02:52]}  Na6 {[%clk 0:02:42]} 10. a3 {[%clk 0:02:51]}  Nc7 {[%clk 0:02:41]} 11. Qe2 {[%clk 0:02:44]}  Qd7 {[%clk 0:02:39]} 12. O-O-O {[%clk 0:02:40]}  O-O-O {[%clk 0:02:37]} 13. c4 {[%clk 0:02:36]}  dxc4 {[%clk 0:02:36]} 14. Nxc4 {[%clk 0:02:37]}  Nd5 {[%clk 0:02:18]} 15. Nf4 {[%clk 0:02:32]}  Nxf4 {[%clk 0:02:13]} 16. gxf4 {[%clk 0:02:31]}  Bc7 {[%clk 0:01:59]} 17. Kb1 {[%clk 0:02:29]}  Kb8 {[%clk 0:01:57]} 18. Rc1 {[%clk 0:02:28]}  Rhe8 {[%clk 0:01:53]} 19. Qc2 {[%clk 0:02:27]}  h5 {[%clk 0:01:43]} 20. Qc3 {[%clk 0:02:24]}  Bf7 {[%clk 0:01:42]} 21. Rhd1 {[%clk 0:02:19]}  Qe7 {[%clk 0:01:31]} 22. Na5 {[%clk 0:02:14]}  Bxa5 {[%clk 0:01:14]} 23. Qxa5 {[%clk 0:02:14]}  Bd5 {[%clk 0:01:10]} 24. Bxd5 {[%clk 0:02:00]}  Rxd5 {[%clk 0:01:11]} 25. Qc3 {[%clk 0:01:52]}  g5 {[%clk 0:01:01]} 26. fxg5 {[%clk 0:01:50]}  fxg5 {[%clk 0:01:02]} 27. hxg5 {[%clk 0:01:51]}  Qxg5 {[%clk 0:01:02]} 28. Rh1 {[%clk 0:01:48]}  h4 {[%clk 0:00:58]} 29. Rcg1 {[%clk 0:01:48]}  Qh6 {[%clk 0:00:50]} 30. Rh3 {[%clk 0:01:48]}  f4 {[%clk 0:00:44]} 31. Rgh1 {[%clk 0:01:48]}  fxe3 {[%clk 0:00:40]} 32. fxe3 {[%clk 0:01:49]}  Rh5 {[%clk 0:00:36]} 33. Qe1 {[%clk 0:01:48]}  a6 {[%clk 0:00:22]} 34. Ka1 {[%clk 0:01:44]}  Re4 {[%clk 0:00:20]} 35. Qf2 {[%clk 0:01:44]}  Ka7 {[%clk 0:00:15]} 36. Qf3 {[%clk 0:01:42]}  Re8 {[%clk 0:00:13]} 37. e4 {[%clk 0:01:40]}  Rh8 {[%clk 0:00:11]} 38. e5 {[%clk 0:01:38]}  Qd2 {[%clk 0:00:11]} 39. Rd1 {[%clk 0:01:36]}  Qg5 {[%clk 0:00:09]} 40. Qf2 {[%clk 0:01:36]}  Qf5 {[%clk 0:00:08]} 41. Rf3 {[%clk 0:01:35]}  Qg4 {[%clk 0:00:06]} 42. d5+ {[%clk 0:01:35]}  Ka8 {[%clk 0:00:03]} 43. dxc6 {[%clk 0:01:35]}  bxc6 {[%clk 0:00:02]} 44. Rg1 {[%clk 0:01:32]}  Qd7 {[%clk 0:00:01]} 45. Rf8+ {[%clk 0:01:31]}  Rxf8 {[%clk 0:00:01]} 46. Qxf8+ {[%clk 0:01:31]}  Kb7 {[%clk 0:00:01]} 47. Rg7 {[%clk 0:01:32]} 1-0


[Site "https://www.chess.com"]

[Event "Titled Tuesday Blitz March 15 Late 2022"]
[White "Holt, Conrad"]
[Black "Lazavik, Denis"]
[WhiteFideId "2034387"]
[BlackFideId "13515110"]
[WhiteElo "2586"]
[BlackElo "2437"]
[Result "1/2-1/2"]
[Round "03"]
[TimeControl "180+1"]
[Date "2022.03.15"]
[WhiteClock "0:00:08"]
[BlackClock "0:00:07"]

1. d4 {[%clk 0:02:56]}  Nf6 {[%clk 0:02:59]} 2. c4 {[%clk 0:02:56]}  e6 {[%clk 0:02:59]} 3. Nc3 {[%clk 0:02:56]}  Bb4 {[%clk 0:02:59]} 4. Qc2 {[%clk 0:02:56]}  O-O {[%clk 0:02:59]} 5. e4 {[%clk 0:02:56]}  d5 {[%clk 0:02:59]} 6. e5 {[%clk 0:02:56]}  Ne4 {[%clk 0:02:59]} 7. Bd3 {[%clk 0:02:57]}  c5 {[%clk 0:02:59]} 8. Nf3 {[%clk 0:02:57]}  cxd4 {[%clk 0:02:56]} 9. Nxd4 {[%clk 0:02:58]}  Nd7 {[%clk 0:02:56]} 10. Bf4 {[%clk 0:02:58]}  Qh4 {[%clk 0:02:45]} 11. g3 {[%clk 0:02:58]}  Qh5 {[%clk 0:02:45]} 12. O-O {[%clk 0:02:55]}  g5 {[%clk 0:02:45]} 13. cxd5 {[%clk 0:02:53]}  Bxc3 {[%clk 0:02:37]} 14. bxc3 {[%clk 0:02:51]}  exd5 {[%clk 0:02:34]} 15. e6 {[%clk 0:02:50]}  gxf4 {[%clk 0:02:33]} 16. exd7 {[%clk 0:02:47]}  Bxd7 {[%clk 0:02:34]} 17. Bxe4 {[%clk 0:02:48]}  dxe4 {[%clk 0:02:35]} 18. Qxe4 {[%clk 0:02:48]}  fxg3 {[%clk 0:02:36]} 19. hxg3 {[%clk 0:02:47]}  b6 {[%clk 0:02:35]} 20. Rfe1 {[%clk 0:02:44]}  Rfe8 {[%clk 0:02:34]} 21. Qb7 {[%clk 0:02:36]}  Qg4 {[%clk 0:02:29]} 22. Re7 {[%clk 0:02:22]}  Rxe7 {[%clk 0:02:18]} 23. Qxa8+ {[%clk 0:02:20]}  Be8 {[%clk 0:02:13]} 24. Nc6 {[%clk 0:01:41]}  Re2 {[%clk 0:02:09]} 25. Nd4 {[%clk 0:01:30]}  Re7 {[%clk 0:02:07]} 26. a4 {[%clk 0:01:29]}  h5 {[%clk 0:02:05]} 27. a5 {[%clk 0:01:13]}  h4 {[%clk 0:01:55]} 28. Qd8 {[%clk 0:01:12]}  Kf8 {[%clk 0:01:26]} 29. Qd6 {[%clk 0:00:48]}  hxg3 {[%clk 0:01:23]} 30. fxg3 {[%clk 0:00:48]}  Qg6 {[%clk 0:01:15]} 31. Qxg6 {[%clk 0:00:40]}  fxg6 {[%clk 0:01:16]} 32. axb6 {[%clk 0:00:38]}  axb6 {[%clk 0:01:15]} 33. Kf2 {[%clk 0:00:34]}  Bf7 {[%clk 0:01:09]} 34. Ra8+ {[%clk 0:00:29]}  Kg7 {[%clk 0:01:09]} 35. Rc8 {[%clk 0:00:29]}  Bd5 {[%clk 0:00:52]} 36. Rd8 {[%clk 0:00:24]}  Bf7 {[%clk 0:00:49]} 37. Rd6 {[%clk 0:00:20]}  Rc7 {[%clk 0:00:47]} 38. Nb5 {[%clk 0:00:19]}  Rb7 {[%clk 0:00:39]} 39. Ke3 {[%clk 0:00:18]}  Be8 {[%clk 0:00:31]} 40. Nd4 {[%clk 0:00:18]}  Bf7 {[%clk 0:00:32]} 41. Kd3 {[%clk 0:00:16]}  b5 {[%clk 0:00:32]} 42. Nc6 {[%clk 0:00:15]}  Rc7 {[%clk 0:00:16]} 43. Kd4 {[%clk 0:00:15]}  Be8 {[%clk 0:00:14]} 44. Ne5 {[%clk 0:00:15]}  Re7 {[%clk 0:00:14]} 45. g4 {[%clk 0:00:15]}  g5 {[%clk 0:00:13]} 46. Nf3 {[%clk 0:00:15]}  Rc7 {[%clk 0:00:13]} 47. Nxg5 {[%clk 0:00:15]}  Rc4+ {[%clk 0:00:13]} 48. Kd3 {[%clk 0:00:15]}  Rxg4 {[%clk 0:00:13]} 49. Ne6+ {[%clk 0:00:15]}  Kf6 {[%clk 0:00:09]} 50. Nc7+ {[%clk 0:00:15]}  Ke7 {[%clk 0:00:09]} 51. Nxe8 {[%clk 0:00:12]}  Kxe8 {[%clk 0:00:09]} 52. Rb6 {[%clk 0:00:12]}  Rg5 {[%clk 0:00:09]} 53. Kc2 {[%clk 0:00:12]}  Kd7 {[%clk 0:00:09]} 54. Kb3 {[%clk 0:00:12]}  Kc7 {[%clk 0:00:10]} 55. Rf6 {[%clk 0:00:13]}  Rh5 {[%clk 0:00:10]} 56. Kb4 {[%clk 0:00:13]}  Kb7 {[%clk 0:00:10]} 57. Rg6 {[%clk 0:00:13]}  Kc7 {[%clk 0:00:10]} 58. Rf6 {[%clk 0:00:13]}  Kb7 {[%clk 0:00:11]} 59. Ka5 {[%clk 0:00:13]}  Rc5 {[%clk 0:00:10]} 60. Rf3 {[%clk 0:00:09]}  Kc7 {[%clk 0:00:09]} 61. Ka6 {[%clk 0:00:09]}  Kc6 {[%clk 0:00:08]} 62. Rh3 {[%clk 0:00:09]}  Kc7 {[%clk 0:00:08]} 63. Rg3 {[%clk 0:00:09]}  Kc6 {[%clk 0:00:09]} 64. Rh3 {[%clk 0:00:09]}  Rc4 {[%clk 0:00:08]} 65. Rh6+ {[%clk 0:00:07]}  Kc7 {[%clk 0:00:08]} 66. Kxb5 {[%clk 0:00:07]}  Rxc3 {[%clk 0:00:08]} 67. Rh5 {[%clk 0:00:07]}  Rc1 {[%clk 0:00:07]} 68. Rc5+ {[%clk 0:00:07]}  Rxc5+ {[%clk 0:00:07]} 69. Kxc5 {[%clk 0:00:08]} 1/2-1/2


[Site "https://www.chess.com"]